[Event "4NCL Div 1 2024-25"]
[Site "England"]
[Date "2025.04.06"]
[Round "8.34"]
[White "Bremner, Adam"]
[Black "Kirk, Ezra"]
[Result "1/2-1/2"]
[Annotator "ChessBase"]
[ECO "B22"]
[WhiteElo "2149"]
[BlackElo "2386"]
[PlyCount "90"]
[EventDate "2024.11.23"]
[EventType "team-tourn"]
[EventCountry "ENG"]
[SourceTitle "playchess.com"]
[Source "ChessBase"]
[SourceQuality "1"]
[TimeControl "40/6000+30:3000+30"]

1. e4 {[%emt 0:10:03]} c5 {[%emt 0:16:16]} 2. Nf3 {[%emt 0:00:13]} Nc6 {[%emt 0:03:18]} 3. c3 {[%emt 0:01:06]} Nf6 {[%emt 0:03:32]} 4. e5 {[%emt 0:01:05]} Nd5 {[%emt 0:00:06]} 5. d4 {[%emt 0:00:15]} cxd4 {[%emt 0:00:35]} 6. Bc4 {[%emt 0:00:13]} Nb6 {[%emt 0:00:56]} 7. Bb3 {[%emt 0:00:05]} d6 {[%emt 0:01:24]} 8. exd6 {[%emt 0:00:12]} Qxd6 {[%emt 0:04:22]} 9. O-O {[%emt 0:00:08]} e6 {[%emt 0:07:49]} 10. cxd4 {[%emt 0:03:17]} Be7 {[%emt 0:01:02]} 11. Nc3 {[%emt 0:00:09]} O-O {[%emt 0:01:35]} 12. Be3 {[%emt 0:21:48]} Rd8 {[%emt 0:06:13]} 13. Qe2 {[%emt 0:05:34]} Nd5 {[%emt 0:04:19]} 14. Rfd1 {[%emt 0:03:37]} Nxe3 {[%emt 0:03:06]} 15. Qxe3 {[%emt 0:05:28]} Nb4 {[%emt 0:16:48]} 16. d5 {[%emt 0:13:29]} Qb6 {[%emt 0:01:14]} 17. Qxb6 {[%emt 0:08:20]} axb6 {[%emt 0:00:08]} 18. a3 {[%emt 0:00:09]} Na6 {[%emt 0:02:54]} 19. dxe6 {[%emt 0:01:21]} Bxe6 {[%emt 0:00:08]} 20. Bxe6 {[%emt 0:00:08]} fxe6 {[%emt 0:00:04]} 21. Re1 {[%emt 0:09:55]} Nc5 {[%emt 0:01:49]} 22. Ne4 {[%emt 0:01:52]} Nd3 {[%emt 0:18:41]} 23. Re2 {[%emt 0:00:38]} Rac8 {[%emt 0:01:01]} 24. g3 {[%emt 0:23:25]} Rd5 {[%emt 0:07:33]} 25. Nc3 {[%emt 0:00:00]} Rf5 {[%emt 0:01:38]} 26. Nd4 {[%emt 0:00:00]} Rxf2 {[%emt 0:00:52]} 27. Rxf2 {[%emt 0:00:00]} Nxf2 {[%emt 0:00:05]} 28. Kxf2 {[%emt 0:00:00]} Bc5 {[%emt 0:00:05]} 29. Ncb5 {[%emt 0:00:00]} e5 {[%emt 0:00:19]} 30. Rd1 {[%emt 0:00:00]} Rd8 {[%emt 0:05:00]} 31. Ke3 {[%emt 0:00:00]} exd4+ {[%emt 0:00:34]} 32. Nxd4 {[%emt 0:00:00]} Be7 {[%emt 0:00:16]} 33. Rd3 {[%emt 0:00:00]} Bf6 {[%emt 0:01:03]} 34. b3 {[%emt 0:00:00]} Kf7 {[%emt 0:01:00]} 35. Nb5 {[%emt 0:00:00]} Rxd3+ {[%emt 0:00:47]} 36. Kxd3 {[%emt 0:00:00]} Ke6 {[%emt 0:00:27]} 37. Ke4 {[%emt 0:00:56]} Bb2 {[%emt 0:00:31]} 38. a4 {[%emt 0:02:15]} g6 {[%emt 0:00:06]} 39. g4 {[%emt 0:02:33]} Bf6 {[%emt 0:01:48]} 40. Nc7+ {[%emt 0:00:29]} Kd7 {[%emt 0:00:30]} 41. Nd5 {[%emt 0:50:21]} Bd8 {[%emt 0:21:44]} 42. b4 {[%emt 0:00:00]} Kc6 {[%emt 0:03:08]} 43. Ke5 {[%emt 0:00:00]} b5 {[%emt 0:04:24]} 44. a5 {[%emt 0:00:00]} Bg5 {[%emt 0:06:41]} 45. Ke6 {[%emt 0:00:00]} Bd2 {[%emt 0:03:31]} 1/2-1/2

[Event "4NCL Div 1 2024-25"]
[Site "England"]
[Date "2025.04.06"]
[Round "8.35"]
[White "Pert, Nicholas"]
[Black "Dobrolyubov, Alexandr K"]
[Result "1-0"]
[Annotator "TA"]
[ECO "B07"]
[WhiteElo "2527"]
[BlackElo "1951"]
[PlyCount "111"]
[EventDate "2024.11.23"]
[EventType "team-tourn"]
[EventCountry "ENG"]
[SourceTitle "playchess.com"]
[Source "ChessBase"]
[SourceQuality "1"]
[TimeControl "40/6000+30:3000+30"]

{[%evp 11,111,29,29,37,50,13,29,21,33,24,31,-6,23,24,14,0,0,0,0,-6,0,-7,0,0,9,10,14,0,26,35,30,21,26,24,25,12,18,8,14,14,72,75,83,81,81,79,69,34,28,35,36,36,38,0,0,0,8,0,0,0,0,0,22,-13,0,0,0,0,0,0,0,0,0,0,0,0,0,0,0,0,0,0,222,208,400,391,1250,1203,1632,1543,1515,1320,1921,232,1952,1895,2461,2382,29979,29980,29969,6637]} 1. d4 {[%emt 0:10:23]} Nf6 {[%emt 0:10:02]} 2. Nf3 {[%emt 0:00:10]} g6 {[%emt 0:00:23]} 3. Nbd2 {[%emt 0:01:17]} d6 {[%emt 0:00:43]} 4. e4 {[%emt 0:00:21]} Bg7 {[%emt 0:01:06]} 5. Bd3 {[%emt 0:00:26]} O-O {[%emt 0:00:54]} 6. O-O {[%emt 0:00:12]} Nc6 {[%emt 0:06:43]} 7. Re1 {[%emt 0:00:35] B07: Pirc Defence: Miscellaneous Systems.} e5 {[%emt 0:00:24]} 8. dxe5 {[%emt 0:00:33]} Nxe5 {[%emt 0:00:18]} 9. Nxe5 {[%emt 0:01:24] White has an edge.} dxe5 {[%emt 0:00:02]} 10. Nc4 {[%emt 0:01:06] 10.Nf3 gains popularity.} Nd7 {[%emt 0:02:07][%cal Bf6d7,Bd7f8,Bf8e6,Be6f4][%mdl 32]} 11. Bd2 $146 {[%emt 0:04:54]} (11. Bf1 Nc5 12. Qf3 Ne6 13. c3 b6 14. Rd1 Qf6 15. Qxf6 Bxf6 16. Ne3 Bg5 17. Bc4 {½-½ Kuzubov,Y (2612)-Strikovic,A (2484) Santiago de Compostela Bicapawn GP B4 blitz 2022 (8)}) 11... Qe7 {[%emt 0:02:47]} 12. a4 {[%emt 0:15:06]} Rd8 {[%emt 0:03:18]} 13. Qc1 {[%emt 0:18:28]} Nf8 {[%emt 0:03:32]} 14. Bc3 {[%emt 0:01:01]} f6 {[%emt 0:08:53]} 15. b3 {[%emt 0:06:52]} Ne6 {[%emt 0:04:24]} 16. Qa3 {[%emt 0:00:05]} Qf7 {[%emt 0:00:21]} 17. Rad1 {[%emt 0:01:28]} Nf4 {[%emt 0:02:06]} 18. Bf1 {[%emt 0:00:34]} Bg4 {[%emt 0:04:40]} 19. f3 {[%emt 0:02:58]} (19. Rxd8+ {simplifies} Rxd8 20. Qc1 Be6 21. Ne3) 19... Bf8 {[%emt 0:00:25]} 20. Bb4 {[%emt 0:01:34]} Be6 {[%emt 0:02:45]} 21. Bxf8 {[%emt 0:01:08]} Qxf8 {[%emt 0:00:22]} 22. g3 {[%emt 0:03:50]} Nh5 {[%emt 0:04:24]} 23. Qxf8+ {[%emt 0:08:08]} Kxf8 {[%emt 0:00:04]} 24. Na5 {[%emt 0:00:56]} Rxd1 {[%emt 0:01:34]} 25. Rxd1 {[%emt 0:00:07]} b6 {[%emt 0:00:12]} (25... Rb8 $11) 26. Nc6 $16 {[%emt 0:01:25]} a5 {[%emt 0:01:14]} 27. Bb5 {[%emt 0:01:42]} Ng7 {[%emt 0:06:04]} 28. Kf2 {[%emt 0:08:57]} h5 {[%emt 0:08:02]} 29. Ke3 {[%emt 0:00:32] White is more active.} Ne8 {[%emt 0:03:20]} 30. f4 {[%emt 0:07:16]} exf4+ {[%emt 0:00:56]} 31. gxf4 {[%emt 0:00:18]} Nd6 {[%emt 0:04:00]} 32. e5 {[%emt 0:04:21]} Nxb5 {[%emt 0:04:18]} 33. axb5 $11 {[%emt 0:00:02][%mdl 4096] Endgame KRB-KRN} Re8 {[%emt 0:00:42]} 34. h4 {[%emt 0:00:46]} (34. exf6 $2 {loses.} Bg4+ (34... Bxb3+ 35. Ne5 $16) 35. Kd2 Bxd1 36. Kxd1 Kf7 $19) 34... Bf5 {[%emt 0:01:06]} 35. Rd2 {[%emt 0:00:37]} Kf7 {[%emt 0:06:01]} 36. c4 {[%emt 0:00:41][%cal Bc2c4,Bc4c5][%mdl 32]} Bc8 {[%emt 0:03:09]} 37. Rd5 {[%emt 0:01:59]} Ke6 {[%emt 0:02:24] Wards off c5} 38. Nd4+ {[%emt 0:00:36]} Ke7 {[%emt 0:00:29]} 39. Nc6+ {[%emt 0:01:59]} Ke6 {[%emt 0:00:09]} 40. Nd4+ {[%emt 0:00:08]} Ke7 $1 {[%emt 0:00:21]} 41. c5 {[%emt 0:31:54] [#]} Bb7 {[%emt 0:27:13]} 42. Nc6+ {[%emt 0:02:39]} (42. c6 $5 Bc8 $8 43. Ke4 $11) 42... Ke6 {[%emt 0:01:32]} 43. Kd4 {[%emt 0:01:28]} Bxc6 {[%emt 0:00:19]} 44. bxc6 {[%emt 0:00:03] and cxb6 should not be overlooked. KR-KR} b5 {[%emt 0:00:15][%cal Bb6b5,Bb5a4,Ba4a3,Ba3a2][%mdl 32] and ...a4 would now be decisive} 45. Rd7 {[%emt 0:02:44]} fxe5+ {[%emt 0:03:04]} 46. fxe5 {[%emt 0:00:03]} Ra8 $2 {[%emt 0:10:30]} (46... Re7 $11 {and Black has nothing to worry.} 47. Rd8 Rg7) 47. Rxc7 $18 {[%emt 0:03:21]} a4 $2 {[%emt 0:00:01] [#]} (47... g5 48. Rh7 (48. hxg5 a4 $18) 48... gxh4 49. Rxh5 (49. Rh6+ Kf5 $18) 49... a4 50. Rh6+ (50. Rxh4 Rd8+ 51. Ke4 axb3 $16) 50... Kf5 51. Rf6+ (51. Rxh4 Rd8+ 52. Kc3 Kxe5 $18) 51... Kg4) 48. Rg7 $1 {[%emt 0:01:11]} (48. Rd7 a3 49. Rg7 (49. Rd6+ Ke7 $11) 49... a2 50. Rxg6+ Ke7 51. Rg7+ Ke6 52. Rg6+ Kf7 $18) 48... Kf5 {[%emt 0:12:06]} (48... g5 49. Rg6+ (49. hxg5 a3 $16) (49. Rxg5 axb3 50. Kc3 b2 $18) 49... Kf7 50. Rf6+ (50. Rxg5 a3 $18) 50... Ke7) 49. bxa4 {[%emt 0:01:22]} bxa4 {[%emt 0:00:20]} 50. Kd5 {[%emt 0:02:44]} a3 {[%emt 0:00:46]} 51. c7 {[%emt 0:00:27]} a2 {[%emt 0:00:39]} 52. Rf7+ {[%emt 0:00:05]} Kg4 {[%emt 0:00:04]} 53. Rf1 {[%emt 0:00:11]} Kxh4 {[%emt 0:00:29]} 54. Ra1 {[%emt 0:03:26]} g5 {[%emt 0:00:01][%cal Bg6g5,Bg5g4][%mdl 32]} 55. Kc6 {[%emt 0:00:30]} g4 {[%emt 0:00:09]} 56. Kb7 {[%emt 0:00:18] Weighted Error Value: White=0.05 (flawless) /Black=0.80  Loses game:     	---       	Black=1      Mistake:       	---       	Black=3      Inaccurate:     	White=5     	Black=3      OK:         	White=12    	Black=19     Best:        	White=3     	Black=2      Strong:       	White=1     	Black=1} 1-0

[Event "4NCL Div 1 2024-25"]
[Site "England"]
[Date "2025.04.06"]
[Round "8.36"]
[White "Lentzos, Ioanis"]
[Black "Eggleston, David J"]
[Result "0-1"]
[Annotator "ChessBase"]
[ECO "A28"]
[WhiteElo "2126"]
[BlackElo "2339"]
[PlyCount "118"]
[EventDate "2024.11.23"]
[EventType "team-tourn"]
[EventCountry "ENG"]
[SourceTitle "playchess.com"]
[Source "ChessBase"]
[SourceQuality "1"]
[TimeControl "40/6000+30:3000+30"]

1. c4 e5 {[%emt 1:41:00]} 2. Nc3 {[%emt 1:41:30]} Nc6 {[%emt 0:00:30]} 3. Nf3 {[%emt 0:00:30]} Nf6 {[%emt 0:00:30]} 4. e3 {[%emt 0:00:30]} Bb4 {[%emt 0:00:30]} 5. Qc2 {[%emt 0:00:30]} Bxc3 {[%emt 0:00:30]} 6. bxc3 {[%emt 0:00:30]} d6 {[%emt 0:00:30]} 7. e4 {[%emt 0:00:30]} O-O {[%emt 0:00:30]} 8. g3 {[%emt 0:00:30]} Ne8 {[%emt 0:00:30]} 9. Nh4 {[%emt 0:00:30]} Ne7 {[%emt 0:00:30]} 10. Bg2 {[%emt 0:00:30]} f5 {[%emt 0:00:30]} 11. d4 {[%emt 0:00:30]} fxe4 {[%emt 0:00:30]} 12. Bxe4 {[%emt 0:00:30]} Nf6 {[%emt 0:00:30]} 13. Bg2 {[%emt 0:00:30]} exd4 {[%emt 0:00:30]} 14. cxd4 {[%emt 0:00:30]} d5 {[%emt 0:00:30]} 15. O-O {[%emt 0:00:30]} dxc4 {[%emt 0:00:30]} 16. Ba3 {[%emt 0:00:30]} Re8 {[%emt 0:00:30]} 17. Rfe1 {[%emt 0:00:30]} Ned5 {[%emt 0:00:30]} 18. Qxc4 {[%emt 0:00:30]} c6 {[%emt 0:00:30]} 19. Re5 {[%emt 0:00:30]} Be6 {[%emt 0:00:30]} 20. Qe2 {[%emt 0:00:30]} Qd7 {[%emt 0:00:30]} 21. Re1 {[%emt 0:00:30]} Nc3 {[%emt 0:00:30]} 22. Qe3 {[%emt 0:00:30]} Nfd5 {[%emt 0:00:30]} 23. Qg5 {[%emt 0:00:30]} Qf7 {[%emt 0:00:30]} 24. f4 {[%emt 0:00:30]} h6 {[%emt 0:00:30]} 25. Qg6 {[%emt 0:00:30]} Qxg6 {[%emt 0:00:30]} 26. Nxg6 {[%emt 0:00:30]} Bf7 {[%emt 0:00:30]} 27. Ne7+ {[%emt 0:00:30]} Nxe7 {[%emt 0:00:30]} 28. Rxe7 {[%emt 0:00:30]} Rxe7 {[%emt 0:00:30]} 29. Rxe7 {[%emt 0:00:30]} Re8 {[%emt 0:00:30]} 30. Rxe8+ {[%emt 0:00:30]} Bxe8 {[%emt 0:00:30]} 31. Bc5 {[%emt 0:00:30]} b6 {[%emt 0:00:30]} 32. Bd6 {[%emt 0:00:30]} Nxa2 {[%emt 0:00:30]} 33. Bb8 {[%emt 0:00:30]} a6 {[%emt 0:00:30]} 34. Bc7 {[%emt 0:00:30]} b5 {[%emt 0:00:30]} 35. d5 {[%emt 0:00:30]} Nb4 {[%emt 0:00:30]} 36. d6 {[%emt 0:00:30]} Bd7 {[%emt 0:00:30]} 37. Kf2 {[%emt 0:00:30]} c5 {[%emt 0:00:30]} 38. Bb7 {[%emt 0:00:30]} Kf7 {[%emt 0:00:30]} 39. Ke3 {[%emt 0:00:30]} Ke6 {[%emt 0:00:30]} 40. Ke4 {[%emt 0:00:30]} Bc6+ {[%emt 0:00:30]} 41. Bxc6 {[%emt 0:50:30]} Nxc6 {[%emt 0:50:30]} 42. f5+ {[%emt 0:00:30]} Kd7 {[%emt 0:00:30]} 43. Kd5 {[%emt 0:00:30]} c4 {[%emt 0:00:30]} 44. Bb6 {[%emt 0:00:30]} c3 {[%emt 0:00:30]} 45. Be3 {[%emt 0:00:30]} h5 {[%emt 0:00:30]} 46. Bf4 {[%emt 0:00:30]} c2 {[%emt 0:00:30]} 47. Kc5 {[%emt 0:00:30]} b4 {[%emt 0:00:30]} 48. Kc4 {[%emt 0:00:30]} a5 {[%emt 0:00:30]} 49. h3 {[%emt 0:00:30]} a4 {[%emt 0:00:30]} 50. g4 {[%emt 0:00:30]} hxg4 {[%emt 0:00:30]} 51. hxg4 {[%emt 0:00:30]} a3 {[%emt 0:00:30]} 52. Kb3 {[%emt 0:00:30]} Nd4+ {[%emt 0:00:30]} 53. Ka2 {[%emt 0:00:30]} Ne2 {[%emt 0:00:30]} 54. Bd2 {[%emt 0:00:30]} c1=Q {[%emt 0:00:30]} 55. Bxc1 {[%emt 0:00:30]} Nxc1+ {[%emt 0:00:30]} 56. Kb1 {[%emt 0:00:30]} a2+ {[%emt 0:00:30]} 57. Kb2 {[%emt 0:00:30]} b3 {[%emt 0:00:30]} 58. g5 {[%emt 0:00:30]} Nd3+ {[%emt 0:00:30]} 59. Ka1 {[%emt 0:00:30]} Nb4 {[%emt 0:00:30]} 0-1

[Event "4NCL Div 1 2024-25"]
[Site "England"]
[Date "2025.04.06"]
[Round "8.37"]
[White "Pert, Richard G"]
[Black "Foisor, Mihaela-Veronica"]
[Result "1-0"]
[Annotator "ChessBase"]
[ECO "C06"]
[WhiteElo "2399"]
[BlackElo "2156"]
[PlyCount "59"]
[EventDate "2024.11.23"]
[EventType "team-tourn"]
[EventCountry "ENG"]
[SourceTitle "playchess.com"]
[Source "ChessBase"]
[SourceQuality "1"]
[TimeControl "40/6000+30:3000+30"]

1. e4 {[%emt 0:13:13]} e6 {[%emt 0:10:04]} 2. d4 {[%emt 0:00:10]} d5 {[%emt 0:00:09]} 3. Nd2 {[%emt 0:00:06]} Nf6 {[%emt 0:00:24]} 4. e5 {[%emt 0:00:06]} Nfd7 {[%emt 0:00:03]} 5. Ngf3 {[%emt 0:00:12]} c5 {[%emt 0:00:05]} 6. c3 {[%emt 0:00:04]} Nc6 {[%emt 0:00:04]} 7. Bd3 {[%emt 0:00:05]} Qb6 {[%emt 0:17:29]} 8. O-O {[%emt 0:01:09]} cxd4 {[%emt 0:00:18]} 9. cxd4 {[%emt 0:00:13]} Nxd4 {[%emt 0:01:23]} 10. Nxd4 {[%emt 0:00:27]} Qxd4 {[%emt 0:00:09]} 11. Nf3 {[%emt 0:00:06]} Qb6 {[%emt 0:00:44]} 12. Qa4 {[%emt 0:00:55]} Qb4 {[%emt 0:02:20]} 13. Qc2 {[%emt 0:00:17]} Nc5 {[%emt 0:13:19]} 14. Bd2 {[%emt 0:00:50]} Qb6 {[%emt 0:03:18]} 15. Be3 {[%emt 0:24:10]} Bd7 {[%emt 0:02:30]} 16. Rfc1 {[%emt 0:12:33]} Rc8 {[%emt 0:01:09]} 17. Bf1 {[%emt 0:01:45]} Be7 {[%emt 0:07:11]} 18. Rab1 {[%emt 0:04:33]} a5 {[%emt 0:02:15]} 19. Nd4 {[%emt 0:01:24]} Qc7 {[%emt 0:07:00]} 20. Nb5 {[%emt 0:15:00]} Qxe5 {[%emt 0:00:31]} 21. Bd4 {[%emt 0:02:59]} Qe4 {[%emt 0:03:59]} 22. Qd2 {[%emt 0:04:19]} O-O {[%emt 0:02:41]} 23. Re1 {[%emt 0:01:31]} Qg6 {[%emt 0:07:21]} 24. Qxa5 {[%emt 0:01:33]} Nd3 {[%emt 0:05:22]} 25. Re3 {[%emt 0:08:41]} Nxf2 {[%emt 0:02:38]} 26. Rg3 {[%emt 0:00:30]} Ng4 {[%emt 0:21:04]} 27. Bd3 {[%emt 0:00:24]} f5 {[%emt 0:00:00]} 28. h3 {[%emt 0:00:05]} Bxb5 {[%emt 0:00:00]} 29. Qxb5 {[%emt 0:00:37]} Bd6 {[%emt 0:00:00]} 30. Rxg4 {[%emt 0:00:20]} 1-0

[Event "4NCL Div 1 2024-25"]
[Site "England"]
[Date "2025.04.06"]
[Round "8.38"]
[White "Milson, Samuel A"]
[Black "Pert, Max"]
[Result "1-0"]
[Annotator "NA"]
[ECO "C79"]
[WhiteElo "2069"]
[BlackElo "2076"]
[PlyCount "69"]
[EventDate "2024.11.23"]
[EventType "team-tourn"]
[EventCountry "ENG"]
[SourceTitle "playchess.com"]
[Source "ChessBase"]
[SourceQuality "1"]
[TimeControl "40/6000+30:3000+30"]

1. e4 {[%emt 0:10:04]} e5 {[%emt 0:10:39]} 2. Nf3 {[%emt 0:00:18]} Nc6 {[%emt 0:00:48]} 3. Bb5 {[%emt 0:00:14]} a6 {[%emt 0:00:39]} 4. Ba4 {[%emt 0:00:29]} Nf6 {[%emt 0:00:29]} 5. O-O {[%emt 0:00:26]} d6 {[%emt 0:00:28]} 6. Re1 {[%emt 0:01:17]} Bd7 {[%emt 0:00:54]} 7. c4 {[%emt 0:05:45]} Be7 {[%emt 0:12:49]} 8. Nc3 {[%emt 0:01:00]} O-O {[%emt 0:02:04]} 9. Bxc6 {[%emt 0:05:12]} bxc6 {[%emt 0:05:01]} 10. d4 {[%emt 0:01:05]} exd4 {[%emt 0:03:39]} 11. Qxd4 {[%emt 0:09:48]} Bg4 {[%emt 0:07:18]} 12. Qd3 {[%emt 0:04:28]} Nd7 {[%emt 0:03:41]} 13. h3 {[%emt 0:05:54]} Bxf3 {[%emt 0:07:31]} 14. Qxf3 {[%emt 0:00:08]} Bf6 {[%emt 0:00:59]} 15. Bf4 {[%emt 0:11:27]} Rb8 {[%emt 0:02:42]} 16. b3 {[%emt 0:03:59]} Ne5 {[%emt 0:08:51]} 17. Qe3 {[%emt 0:05:34]} Ng6 {[%emt 0:12:35]} 18. Bg3 {[%emt 0:01:27]} c5 {[%emt 0:02:06]} 19. Rad1 {[%emt 0:06:12]} Re8 {[%emt 0:06:06]} 20. Qd2 {[%emt 0:04:20]} Qc8 {[%emt 0:05:53]} 21. Nd5 {[%emt 0:02:27]} Bd8 {[%emt 0:03:35]} 22. Qd3 {[%emt 0:06:16]} Bh4 {[%emt 0:06:03]} 23. Bxh4 {[%emt 0:06:19]} Nxh4 {[%emt 0:00:06]} 24. Qg3 {[%emt 0:00:14]} Ng6 {[%emt 0:00:21]} 25. h4 {[%emt 0:03:13]} Re6 {[%emt 0:02:46]} 26. f4 {[%emt 0:00:51]} c6 {[%emt 0:01:22]} 27. f5 {[%emt 0:01:38]} cxd5 {[%emt 0:00:28]} 28. fxe6 {[%emt 0:00:08]} fxe6 {[%emt 0:00:19]} 29. Qxd6 {[%emt 0:01:57]} d4 {[%emt 0:00:14]} 30. h5 {[%emt 0:00:38]} Nf8 {[%emt 0:00:06]} 31. Rf1 {[%emt 0:00:43]} Rb7 {[%emt 0:01:05]} 32. Rd3 {[%emt 0:00:40]} Rf7 {[%emt 0:00:21]} 33. Rxf7 {[%emt 0:00:14]} Kxf7 {[%emt 0:00:05]} 34. Rf3+ {[%emt 0:00:08]} Kg8 {[%emt 0:00:05]} 35. Qe7 {[%emt 0:00:10]} 1-0

[Event "4NCL Div 1 2024-25"]
[Site "England"]
[Date "2025.04.06"]
[Round "8.39"]
[White "Pert, Nina"]
[Black "Birtwistle, Nigel"]
[Result "0-1"]
[Annotator "NA"]
[ECO "B34"]
[WhiteElo "1984"]
[BlackElo "2041"]
[PlyCount "58"]
[EventDate "2024.11.23"]
[EventType "team-tourn"]
[EventCountry "ENG"]
[SourceTitle "playchess.com"]
[Source "ChessBase"]
[SourceQuality "1"]
[TimeControl "40/6000+30:3000+30"]

1. e4 {[%emt 0:10:04]} c5 {[%emt 0:10:10]} 2. Nf3 {[%emt 0:00:14]} Nc6 {[%emt 0:00:20]} 3. d4 {[%emt 0:00:42]} cxd4 {[%emt 0:00:15]} 4. Nxd4 {[%emt 0:00:05]} g6 {[%emt 0:00:29]} 5. Nc3 {[%emt 0:00:49]} Bg7 {[%emt 0:00:13]} 6. Be3 {[%emt 0:00:51]} Nf6 {[%emt 0:00:16]} 7. f3 {[%emt 0:02:38]} O-O {[%emt 0:01:34]} 8. Qd2 {[%emt 0:05:33]} d5 {[%emt 0:04:39]} 9. Nxc6 {[%emt 0:07:22]} bxc6 {[%emt 0:00:16]} 10. exd5 {[%emt 0:05:17]} Nxd5 {[%emt 0:02:30]} 11. Nxd5 {[%emt 0:04:35]} cxd5 {[%emt 0:00:48]} 12. c3 {[%emt 0:01:24]} e5 {[%emt 0:05:49]} 13. Rd1 {[%emt 0:03:04]} Be6 {[%emt 0:07:06]} 14. Bc5 {[%emt 0:05:10]} Qh4+ {[%emt 0:13:21]} 15. g3 {[%emt 0:01:09]} Qa4 {[%emt 0:00:32]} 16. Bxf8 {[%emt 0:01:31]} Bxf8 {[%emt 0:00:25]} 17. Ra1 {[%emt 0:08:46]} d4 {[%emt 0:03:08]} 18. Bd3 {[%emt 0:03:29]} dxc3 {[%emt 0:03:03]} 19. bxc3 {[%emt 0:02:38]} Bc5 {[%emt 0:00:58]} 20. h4 {[%emt 0:11:44]} Rd8 {[%emt 0:04:42]} 21. Rd1 {[%emt 0:07:52]} Bb6 {[%emt 0:02:56]} 22. Rh2 {[%emt 0:07:12]} Qa3 {[%emt 0:04:08]} 23. h5 {[%emt 0:04:02]} Qc5 {[%emt 0:02:36]} 24. Ke2 {[%emt 0:07:07]} e4 {[%emt 0:02:50]} 25. Qh6 {[%emt 0:04:02]} exd3+ {[%emt 0:03:47]} 26. Kd2 {[%emt 0:00:11]} Rc8 {[%emt 0:06:48]} 27. Rc1 {[%emt 0:02:16]} g5 {[%emt 0:02:18]} 28. Kxd3 {[%emt 0:02:21]} Bf5+ {[%emt 0:02:09]} 29. Ke2 {[%emt 0:00:38]} Qe3+ {[%emt 0:00:23]} 0-1

[Event "4NCL Div 1 2024-25"]
[Site "England"]
[Date "2025.04.06"]
[Round "8.40"]
[White "Dilley, Jason M"]
[Black "Maton, James J"]
[Result "1-0"]
[Annotator "NA"]
[ECO "D00"]
[WhiteElo "2005"]
[BlackElo "1612"]
[PlyCount "37"]
[EventDate "2024.11.23"]
[EventType "team-tourn"]
[EventCountry "ENG"]
[SourceTitle "playchess.com"]
[Source "ChessBase"]
[SourceQuality "1"]
[TimeControl "40/6000+30:3000+30"]

1. d4 {[%emt 0:10:04]} d5 {[%emt 0:10:09]} 2. Bg5 {[%emt 0:00:08]} Nf6 {[%emt 1:31:21]} 3. Bxf6 {[%emt 0:03:23]} exf6 {[%emt 0:00:00]} 4. e3 {[%emt 0:00:06]} Bd6 {[%emt 0:00:00]} 5. Bd3 {[%emt 0:00:16]} Be6 {[%emt 0:00:00]} 6. Nd2 {[%emt 0:01:21]} Nd7 {[%emt 0:00:00]} 7. Ngf3 {[%emt 0:06:01]} c5 {[%emt 0:00:00]} 8. dxc5 {[%emt 0:01:25]} Nxc5 {[%emt 0:00:00]} 9. Bb5+ {[%emt 0:00:21]} Nd7 {[%emt 0:00:00]} 10. O-O {[%emt 0:04:49]} O-O {[%emt 0:00:00]} 11. Nd4 {[%emt 0:08:07]} Qc7 {[%emt 0:00:00]} 12. h3 {[%emt 0:03:00]} f5 {[%emt 0:00:00]} 13. c4 {[%emt 0:08:10]} Nf6 {[%emt 0:00:00]} 14. Rc1 {[%emt 0:03:35]} Qe7 {[%emt 0:00:00]} 15. N2f3 {[%emt 0:01:58]} f4 {[%emt 0:00:00]} 16. cxd5 {[%emt 0:10:39]} Bxd5 {[%emt 0:00:00]} 17. Nf5 {[%emt 0:02:07]} Qe5 {[%emt 0:00:00]} 18. Nxe5 {[%emt 0:00:22]} Bxe5 {[%emt 0:00:00]} 19. Ne7+ {[%emt 0:00:43]} 1-0